bitfinex-derivatives/quotes_ETHF0:USTF0_20250314
["timestamp","ask_amount","ask_price","bid_price","bid_amount"]
[1741960252061,3.2078,1907.5,1907.4,1.04863]
[1741960252255,1.75662,1908.0,1907.4,3.2078]
[1741960252256,1.3735,1907.8,1907.4,3.2078]
[1741960252460,1.3735,1907.8,1907.6,1.0485]
[1741960252658,1.3735,1907.8,1907.5,1.3414]
[1741960252659,2.42191,1907.8,1907.5,1.04855]
[1741960252859,2.42191,1907.8,1907.5,2.38995]
[1741960253060,1.3735,1907.8,1907.5,1.3414]
[1741960253256,1.04848,1907.7,1907.5,1.3414]
[1741960253462,1.04852,1907.6,1907.5,1.3414]
[1741960253658,1.3735,1907.6,1907.2,0.00788043]
[1741960253862,1.04868,1907.3,1907.2,0.00788043]
[1741960254062,4.25648,1907.3,1907.2,0.00788043]
[1741960254760,3.2078,1907.3,1906.9,2.3903]
[1741960254958,1.04885,1907.0,1906.9,1.3414]
[1741960255359,3.2078,1907.0,1906.6,3.2078]
[1741960255553,3.2078,1907.0,1906.7,1.4344]
[1741960255554,1.04885,1907.0,1906.7,1.4344]
[1741960255862,2.50313,1907.1,1906.7,1.4344]
[1741960256063,1.4543,1907.1,1907.0,1.04885]
[1741960256259,0.00788043,1907.4,1906.8,5.8302]
[1741960256455,0.00788043,1907.4,1907.3,1.04868]
[1741960257560,5.8658,1907.9,1907.3,3.54868]
[1741960257766,1.3167,1907.9,1907.4,4.6233]
[1741960257969,1.04853,1907.6,1907.5,1.04857]
[1741960258167,4.2563,1907.7,1907.5,1.04852]
[1741960258466,1.04852,1907.6,1907.5,1.04852]
[1741960258668,1.04852,1907.6,1907.2,5.8296]
[1741960258669,1.3167,1907.6,1907.3,1.4155]
[1741960258962,1.04863,1907.4,1907.3,1.4155]
[1741960259357,1.0487,1907.3,1907.1,1.3855]
[1741960259557,1.0487,1907.3,1907.2,2.46424]
[1741960260459,1.3167,1907.4,1907.3,1.04868]
[1741960260668,6.5778,1907.7,1907.2,1.4155]
[1741960260963,2.46126,1907.6,1907.4,1.04859]
[1741960261167,3.2078,1907.7,1907.6,1.04852]
[1741960261366,1.4127,1908.0,1907.9,1.04835]
[1741960261864,6.90595,1908.3,1907.8,1.40078043]
[1741960262059,1.4127,1908.3,1908.2,1.04819]
[1741960262263,3.2078,1908.5,1908.1,3.2078]
[1741960262564,2.4608,1908.4,1908.3,1.04813]
[1741960262767,3.2078,1908.7,1908.5,1.04802]
[1741960262972,3.9175,1908.9,1908.3,3.2078]
[1741960263165,3.9175,1908.9,1908.7,1.04789]
[1741960263166,1.4127,1908.8,1908.7,1.04789]
[1741960263361,3.9342,1909.1,1908.6,1.3929]
[1741960263568,3.9342,1909.1,1908.2,2.653]
[1741960263569,3.2078,1908.9,1908.2,2.653]
[1741960263761,3.2078,1908.7,1908.3,1.3167]
[1741960263962,3.2078,1908.9,1908.1,3.9006]
[1741960264159,1.3783,1908.8,1908.3,1.3167]
[1741960264361,3.2078,1908.5,1908.1,0.6928]
[1741960264569,3.2078,1908.3,1908.0,1.3167]
[1741960264768,2.42651,1908.2,1908.0,2.365]
[1741960264968,1.3783,1908.2,1908.1,1.04824]
[1741960265269,3.2078,1908.3,1908.0,1.3167]
[1741960265469,3.2078,1908.3,1907.8,3.21568043]
[1741960265470,3.2078,1908.3,1907.8,0.00788043]
[1741960265672,1.3783,1908.2,1907.8,0.00788043]
[1741960265966,9.3604,1908.6,1907.8,0.00788043]
[1741960265967,3.2078,1908.3,1907.8,0.00788043]
[1741960266167,1.3783,1908.5,1908.4,1.04808]
[1741960266374,8.57546,1909.0,1908.8,1.04786]
[1741960266375,3.2078,1908.9,1908.8,1.04786]
[1741960266673,4.5861,1908.9,1908.8,1.04786]
[1741960266972,1.04778,1909.0,1908.9,1.0478]
[1741960267169,4.6666,1909.1,1908.7,1.3988]
[1741960267360,1.04786,1908.8,1908.7,1.3988]
[1741960267564,4.6666,1909.1,1908.7,1.3988]
[1741960267759,1.04786,1908.8,1908.7,1.3988]
[1741960267962,3.2078,1909.1,1908.8,2.61965]
[1741960268166,3.2078,1909.1,1908.9,2.44656]
[1741960268368,4.6666,1909.1,1908.9,2.44655]
[1741960268569,1.4588,1909.1,1909.0,1.04775]
[1741960269071,1.04764,1909.2,1909.0,1.0477]
[1741960269268,3.2078,1909.3,1908.9,4.01829]
[1741960269470,3.2078,1909.3,1909.2,1.04764]
[1741960269674,3.2078,1909.3,1908.9,1.3988]
[1741960269869,2.40445,1909.2,1909.1,1.04769]
[1741960270876,2.40451,1909.1,1909.0,1.04775]
[1741960271175,4.5646,1909.1,1908.7,10.5559]
[1741960271378,1.04791,1908.7,1908.6,0.00785916]
[1741960272073,3.2078,1908.7,1908.6,1.05582916]
[1741960272271,3.2078,1908.7,1908.6,0.00785916]
[1741960272474,5.61251,1908.7,1908.6,0.00785916]
[1741960273873,4.5646,1908.7,1908.4,1.4528]
[1741960274071,1.04802,1908.5,1908.4,1.4528]
[1741960274378,1.04802,1908.5,1908.4,2.50086]
[1741960274581,1.04802,1908.5,1908.4,1.4528]
[1741960275071,1.05579828,1908.6,1908.5,1.04802]
[1741960275272,1.04802,1908.5,1908.4,1.4528]
[1741960275472,1.04802,1908.5,1908.3,0.00785916]
[1741960275473,1.04808,1908.4,1908.3,0.00785916]
[1741960275673,1.3527,1908.4,1908.3,1.05598916]
[1741960275874,1.04808,1908.4,1908.3,0.00785916]
[1741960276075,0.00778828,1908.6,1908.3,1.32535916]
[1741960276476,3.21558828,1908.6,1908.3,1.32535916]
[1741960276681,2.46415,1908.5,1908.3,1.32535916]
[1741960276979,0.00778828,1908.6,1908.5,1.04802]
[1741960277686,1.04771,1909.1,1909.0,1.0477]
[1741960277982,1.04777,1909.0,1908.9,1.04775]
[1741960278169,4.03555,1909.0,1908.5,5.978]
[1741960278377,1.04791,1908.8,1908.7,1.0479]
[1741960278573,1.4161,1909.0,1908.6,1.3175]
[1741960278783,1.04791,1908.7,1908.6,2.36547]
[1741960278973,1.04789,1908.8,1908.7,1.04788]
[1741960279174,1.4161,1909.0,1908.9,1.0478]
[1741960279686,5.956,1909.6,1908.9,1.0478]
[1741960279687,3.889,1909.5,1908.9,1.0478]
[1741960279871,1.04769,1909.1,1909.0,2.39693]
[1741960280573,1.3334,1909.3,1909.0,1.3492]
[1741960280775,1.3334,1909.3,1909.2,1.04764]
[1741960280776,2.38098,1909.3,1909.2,1.04764]
[1741960280975,1.3334,1909.3,1909.0,1.3492]
[1741960281177,2.38104,1909.3,1909.2,1.04764]
[1741960281477,3.2078,1909.5,1909.0,3.96857]
[1741960281678,3.2078,1909.5,1909.1,2.61911]
[1741960281880,2.46206,1909.6,1909.5,1.04747]
[1741960282184,3.2078,1909.7,1909.3,2.61895]
[1741960282379,4.25516,1909.7,1909.6,1.04742]
[1741960282585,3.2078,1909.7,1909.6,1.04742]
[1741960283086,3.2078,1910.5,1909.6,18.3828]
[1741960283386,3.2078,1910.6,1910.2,1.04707]
[1741960283585,1.4146,1910.4,1910.3,1.04703]
[1741960283782,0.6727,1910.6,1910.2,3.2078]
[1741960283987,3.8805,1910.6,1910.4,1.04695]
[1741960284288,1.04695,1910.5,1910.3,2.44251]
[1741960284477,1.4146,1910.5,1910.4,1.04698]
[1741960284673,1.4146,1910.5,1910.4,2.44248]
[1741960285378,3.2078,1910.9,1910.5,1.04693]
[1741960285586,1.04687,1910.6,1910.5,2.42333]
[1741960285779,1.04687,1910.6,1910.5,2.43118916]
[1741960286083,3.2078,1910.6,1910.0,3.2078]
[1741960286276,1.04711,1910.2,1910.0,1.04716]
[1741960286477,3.2078,1910.3,1909.9,1.3764]
[1741960286687,1.4212,1910.2,1910.1,1.04714]
[1741960286890,2.46832,1910.2,1909.9,1.3764]
[1741960287093,2.46832,1910.2,1910.1,1.04714]
[1741960287393,1.0472,1910.0,1909.9,1.38425916]
[1741960287579,3.2078,1910.1,1909.6,3.2078]
[1741960287779,4.629,1909.9,1909.4,1.0475]
[1741960287993,1.04744,1909.6,1909.5,4.25526]
[1741960288190,1.04747,1909.5,1909.4,1.3397]
[1741960288596,1.04753,1909.4,1909.3,4.25538]
[1741960288799,1.04753,1909.4,1909.3,1.05543916]
[1741960288800,1.3454,1909.4,1909.3,1.05543916]
[1741960288995,1.04739,1909.7,1909.3,0.00785916]
[1741960289195,0.698,1910.0,1909.8,1.04729]
[1741960289392,1.04736,1909.7,1909.5,1.04745]
[1741960289599,1.04736,1909.7,1909.6,1.04742]
[1741960289799,3.2078,1910.1,1909.5,1.3397]
[1741960290010,0.00785916,1910.2,1909.7,2.61842]
[1741960290298,0.00785916,1910.2,1909.8,4.5475]
[1741960290497,0.00785916,1910.2,1909.9,2.38693]
[1741960290702,1.0472,1910.0,1909.9,2.38693]
[1741960291096,1.04718,1910.1,1910.0,1.04717]
[1741960291305,1.35325916,1910.2,1910.1,1.04714]
[1741960291496,0.00785916,1910.2,1910.1,1.04714]
[1741960291697,0.00785916,1910.2,1910.0,1.04715]
[1741960291897,1.44595916,1910.2,1910.0,1.3326]
[1741960292098,1.44595916,1910.2,1910.0,2.37976]
[1741960292307,1.04714,1910.1,1910.0,2.37976]
[1741960292704,1.44595916,1910.2,1910.1,1.04714]
[1741960293206,2.49304916,1910.2,1910.1,1.04714]
[1741960293499,1.44595916,1910.2,1910.1,1.04714]
[1741960293705,1.44595916,1910.2,1910.0,4.5404]
[1741960293906,2.49308916,1910.2,1910.1,1.04714]
[1741960294308,1.44595916,1910.2,1910.1,1.04714]
[1741960294495,2.49304916,1910.2,1910.1,1.04714]
[1741960294909,1.04714,1910.1,1910.0,5.58758]
[1741960295097,1.04714,1910.1,1910.0,4.5404]
[1741960295296,1.04736,1909.7,1909.6,0.7132]
[1741960295505,1.04747,1909.6,1909.5,1.406]
[1741960295700,1.04741,1909.7,1909.6,1.0474]
[1741960295895,1.04741,1909.7,1909.5,1.406]
[1741960295896,1.4063,1909.8,1909.5,1.406]
[1741960296300,1.4063,1909.8,1909.7,3.2078]
[1741960296504,1.04742,1909.6,1909.5,5.66124]
[1741960297003,4.02459,1909.8,1909.3,3.21565916]
[1741960297205,4.02459,1909.8,1909.3,4.61375916]
[1741960297412,1.04753,1909.4,1909.3,0.00785916]
[1741960297603,1.04753,1909.4,1909.3,1.05543916]
[1741960297798,1.04753,1909.4,1909.3,2.45353916]
[1741960298104,1.4255,1909.5,1909.3,2.45353916]
[1741960298105,2.47299,1909.5,1909.4,1.04753]
[1741960298304,2.47299,1909.5,1909.4,1.3981]
[1741960298707,1.04753,1909.4,1909.3,0.00785916]
[1741960298910,5.82607,1909.9,1909.6,1.04738]
[1741960299205,3.28293,1910.1,1909.4,1.3981]
[1741960299206,1.04747,1909.5,1909.4,1.3981]
[1741960299405,1.04753,1909.4,1909.3,0.00785916]
[1741960299607,1.0478,1908.9,1908.8,3.78985]
[1741960299808,5.82704,1909.1,1908.8,1.04785]
[1741960300001,5.82704,1909.1,1908.5,1.048]
[1741960300002,1.04797,1908.6,1908.5,1.048]
[1741960300205,1.04794,1908.7,1908.6,1.04795]
[1741960300509,2.751,1909.2,1908.5,3.2078]
[1741960300707,1.3433,1909.3,1908.9,2.61951]
[1741960300907,1.04769,1909.1,1909.0,1.74924]
[1741960301106,1.04769,1909.1,1909.0,1.74922]
[1741960301511,1.04767,1909.2,1909.1,1.04767]
[1741960301709,1.04769,1909.1,1909.0,1.74922]
[1741960301907,1.04767,1909.2,1909.1,1.04767]
[1741960302108,1.35115916,1909.3,1909.0,0.7015]
[1741960302304,0.00785916,1909.3,1909.2,1.04764]
[1741960302905,0.00785916,1909.3,1909.1,0.7116]
[1741960303107,0.00785916,1909.3,1909.2,3.2078]
[1741960303315,0.00785916,1909.3,1909.2,4.25544]
[1741960303503,1.05543916,1909.3,1909.2,1.04764]
[1741960304009,1.04764,1909.2,1909.1,1.75926]
[1741960304817,1.04769,1909.1,1909.0,0.7015]
[1741960305011,1.3266,1909.1,1908.6,9.9398]
[1741960305217,1.0478,1908.9,1908.8,4.25563]
[1741960305419,2.61963,1908.9,1908.5,7.03383916]
[1741960305616,1.04797,1908.6,1908.5,0.00785916]
[1741960306218,2.0461,1908.8,1908.7,1.04791]
[1741960306412,0.6942,1909.2,1908.6,5.82773]
[1741960306732,0.6942,1909.2,1908.5,0.00785916]
[1741960306733,1.0478,1908.9,1908.8,4.25564]
[1741960306919,1.0478,1908.9,1908.7,1.04786]
[1741960307115,4.07677,1909.1,1908.5,5.83567916]
[1741960307116,1.4575,1909.1,1908.5,3.21565916]
[1741960307323,1.04789,1908.8,1908.7,1.04789]
[1741960307918,1.4575,1908.9,1908.5,3.21565916]
[1741960308122,1.04797,1908.6,1908.5,3.21565916]
[1741960308422,1.04797,1908.6,1908.5,0.00785916]
[1741960309128,1.4575,1908.7,1908.6,1.04797]
[1741960309129,2.50546,1908.7,1908.6,1.04797]
[1741960309429,3.2078,1908.9,1908.7,1.04786]
[1741960309430,1.04786,1908.8,1908.7,1.04786]
[1741960309719,1.04778,1909.0,1908.7,3.2078]
[1741960309925,1.0478,1908.9,1908.8,1.04786]
[1741960310224,1.04786,1908.8,1908.7,3.2078]
[1741960310425,1.04791,1908.7,1908.6,1.77884]
[1741960310622,1.04791,1908.7,1908.6,0.7309]
[1741960310924,1.04797,1908.6,1908.5,1.05587916]
[1741960311129,1.3956,1908.6,1908.5,1.05587916]
[1741960311426,1.3956,1908.6,1908.5,4.26367916]
[1741960311620,4.6215,1909.2,1908.8,1.04782]
[1741960311820,1.04782,1908.9,1908.8,1.04782]
[1741960312624,1.04778,1909.0,1908.9,1.04775]
[1741960312821,1.0478,1908.9,1908.8,2.46524]
[1741960313024,1.04797,1908.6,1908.5,3.21565916]
[1741960313222,4.25577,1908.6,1908.5,0.00785916]
[1741960313422,5.79364936,1908.6,1907.7,3.2078]
[1741960313623,3.2078,1908.2,1907.6,0.6888]
[1741960313825,1.04846,1907.7,1907.6,1.7373]
[1741960314133,1.04845,1907.8,1907.7,1.04846]
[1741960314328,1.4572,1907.9,1907.6,0.6888]
[1741960314533,1.04841,1907.8,1907.7,1.04843]
[1741960314825,1.04846,1907.7,1907.6,0.69665916]
[1741960315129,2.50566,1907.7,1907.6,0.00785916]
[1741960315324,1.0488,1907.1,1906.9,3.2078]
[1741960315526,2.62161,1907.4,1907.0,1.04883]
[1741960315834,1.04885,1907.0,1906.9,3.2078]
[1741960316026,1.0488,1907.1,1907.0,1.04884]
[1741960316231,5.2696,1907.4,1907.0,1.04885]
[1741960316427,5.2696,1907.4,1906.9,3.21565916]
[1741960316727,1.04885,1907.0,1906.9,1.05673916]
[1741960316928,1.04875,1907.2,1907.0,1.0488]
[1741960317234,1.04875,1907.2,1906.9,0.00785916]
[1741960317235,1.3943,1907.2,1906.9,3.21565916]
[1741960317425,1.3943,1907.2,1907.1,1.04879]
[1741960317731,1.04879,1907.1,1906.9,4.26453916]
[1741960317931,3.2078,1907.6,1906.9,3.21565916]
[1741960318131,1.04871,1907.3,1907.1,1.04876]
[1741960318333,1.3943,1907.4,1906.9,3.21565916]
[1741960318626,1.3943,1907.4,1907.1,3.2078]
[1741960318829,0.00785916,1907.9,1907.8,1.04841]
[1741960319220,0.00785916,1907.9,1907.5,5.82921]
[1741960319422,0.00785916,1907.9,1907.8,1.04841]
[1741960320425,1.05621916,1907.9,1907.8,1.04841]
[1741960320736,0.00785916,1907.9,1907.4,3.9098]
[1741960321219,1.04846,1907.8,1907.6,1.0485]
[1741960321534,0.00785916,1907.9,1907.6,3.2078]
[1741960321834,1.04841,1907.8,1907.7,1.04841]
[1741960322134,0.00785916,1907.9,1907.8,1.04841]
[1741960322336,0.00785916,1907.9,1907.5,2.62141]
[1741960322337,2.62878916,1907.9,1907.4,3.9098]
[1741960322533,1.04851,1907.7,1907.5,1.04855]
[1741960322744,0.00785916,1907.9,1907.8,1.04841]
[1741960323033,8.57581,1908.7,1908.0,2.62063]
[1741960323225,1.0481,1908.4,1908.3,1.04812]
[1741960323424,1.0481,1908.4,1908.2,3.2078]
[1741960323625,1.3784,1908.5,1908.2,3.2078]
[1741960323821,1.3784,1908.5,1908.2,4.25596]
[1741960324025,1.04813,1908.3,1908.2,3.2078]
[1741960324225,1.04813,1908.3,1908.2,0.00785916]
[1741960324427,1.04812,1908.4,1908.3,1.04813]
[1741960324624,1.04813,1908.3,1908.2,0.00785916]
[1741960325533,4.25593,1908.3,1908.2,0.00785916]
[1741960325733,4.25593,1908.3,1907.7,7.75193]
[1741960325734,1.04841,1907.8,1907.7,7.75193]
[1741960325929,2.0296,1908.2,1907.7,0.7255]
[1741960326134,5.956,1908.4,1908.3,1.04813]
[1741960326331,0.00785916,1908.5,1908.1,3.2078]
[1741960326533,0.00785916,1908.5,1908.3,1.04813]
[1741960326534,1.3331,1908.4,1908.3,1.04813]
[1741960326836,0.00785916,1908.5,1908.4,1.04808]
[1741960328733,0.00785916,1908.5,1908.2,0.00785916]
[1741960329150,1.04813,1908.3,1908.2,0.00785916]
[1741960329350,4.25593,1908.3,1908.2,0.00785916]
[1741960329553,1.04813,1908.3,1908.2,0.00785916]
[1741960329942,1.374,1908.4,1907.6,3.4699]
[1741960329943,1.374,1908.4,1908.1,3.2078]
[1741960330148,0.00785916,1908.5,1908.4,1.04808]
[1741960330359,1.05587916,1908.5,1908.4,1.04808]
[1741960330655,0.00785916,1908.5,1908.4,1.04808]
[1741960331253,1.05587916,1908.5,1908.4,1.04808]
[1741960331442,0.00785916,1908.5,1908.4,1.04808]
[1741960331646,3.2078,1909.7,1908.4,13.7529]
[1741960331846,3.2078,1909.9,1909.2,3.2078]
[1741960332048,1.4153,1909.6,1909.2,3.2078]
[1741960332256,1.04753,1909.4,1909.3,1.04756]
[1741960332552,4.03394,1909.6,1909.1,1.04764]
[1741960332756,1.04768,1909.2,1909.0,4.2555]
[1741960332947,1.04764,1909.2,1909.0,3.2078]
[1741960333147,1.4153,1909.1,1908.8,3.9276]
[1741960333350,1.04775,1909.0,1908.9,0.00785916]
[1741960333550,2.61943,1909.0,1908.5,1.04802]
[1741960333757,3.2078,1908.6,1908.2,0.7198]
[1741960333949,1.04823,1908.2,1908.0,4.25607]
[1741960334146,1.3181,1908.1,1908.0,4.25607]
[1741960334653,2.832,1908.5,1908.0,3.2078]
[1741960334853,2.62036,1908.3,1907.9,0.00523945]
[1741960335056,1.0483,1908.0,1907.9,0.00523945]
[1741960335355,1.0483,1908.0,1907.3,9.25733]
[1741960335356,1.04841,1907.8,1907.3,6.48718]
[1741960335656,1.04841,1907.8,1907.6,1.4448]
[1741960335854,1.3181,1907.9,1907.6,2.49327]
[1741960336053,1.04844,1907.8,1907.6,2.49329]
[1741960336259,1.04844,1907.8,1907.7,1.4448]
[1741960336560,2.36648,1907.9,1907.7,1.4448]
[1741960336859,1.04841,1907.8,1907.7,1.4448]
[1741960337058,2.50251,1907.8,1907.7,1.4448]
[1741960337257,7.1619,1907.8,1907.3,0.7198]
[1741960337554,1.0488,1907.1,1906.9,1.04885]
[1741960337760,2.823,1907.3,1906.8,3.2078]
[1741960337960,2.50297,1907.0,1906.8,5.62762]
[1741960338165,1.0489,1906.9,1906.8,4.5787]
[1741960338455,2.503,1906.9,1906.8,3.2078]
[1741960338654,1.04911,1906.6,1906.4,1.04916]
[1741960338856,1.04907,1906.6,1906.5,1.3709]
[1741960339351,1.04918,1906.4,1906.3,3.2078]
[1741960340152,1.04923,1906.3,1906.2,1.3709]
[1741960340459,1.4511,1906.3,1906.2,2.42019]
[1741960340655,2.50033,1906.3,1906.2,1.3709]
[1741960340958,1.4511,1906.3,1906.0,3.8798]
[1741960341153,1.04934,1906.1,1905.8,1.3312]
[1741960341348,1.04936,1906.1,1905.9,1.04945]
[1741960341553,1.4511,1906.3,1906.2,1.04929]
[1741960341749,3.86916,1906.5,1906.3,1.0492]
[1741960341956,1.4511,1906.7,1906.1,3.2078]
[1741960342252,0.00785916,1906.4,1906.3,1.04923]
[1741960343257,0.00785916,1906.4,1906.2,5.58827]
[1741960343554,1.04923,1906.3,1906.2,4.539]
[1741960343753,1.3158,1906.3,1906.0,3.2078]
[1741960344151,1.3158,1906.3,1906.0,4.25719]
[1741960344350,1.3158,1906.3,1906.0,3.2078]
[1741960344550,1.04934,1906.1,1906.0,3.2078]
[1741960344747,1.3158,1906.3,1906.0,3.2078]
[1741960345059,1.04932,1906.2,1906.0,4.6164]
[1741960345355,1.3158,1906.3,1906.0,5.66575]
[1741960345356,2.36506,1906.3,1906.0,5.66575]
[1741960345562,2.82285916,1906.4,1906.0,4.6164]
[1741960345766,1.04927,1906.3,1906.1,1.04933]
[1741960345955,1.04927,1906.3,1906.2,1.3723]
[1741960346155,2.82285916,1906.4,1906.2,1.3723]
[1741960346466,1.04923,1906.3,1906.2,1.3723]
[1741960346661,1.3434,1906.3,1906.0,3.2078]
[1741960346854,1.04932,1906.2,1906.0,3.2078]
[1741960347056,1.04932,1906.2,1906.1,1.3723]
[1741960347057,1.04929,1906.2,1906.1,1.3723]
[1741960347763,1.3434,1906.3,1906.2,1.04929]
[1741960347962,0.00785916,1906.4,1906.1,1.3723]
[1741960348163,1.3434,1906.3,1906.2,1.04929]
[1741960348364,0.00785916,1906.4,1906.3,1.04923]
[1741960348565,1.05705916,1906.4,1906.2,1.04926]
[1741960348863,1.05703916,1906.4,1906.3,1.3425]
[1741960349469,0.00785916,1906.4,1906.3,1.3425]
[1741960349666,1.05703916,1906.4,1906.3,1.3425]
[1741960349965,0.00785916,1906.4,1906.0,3.2078]
[1741960350167,0.00785916,1906.4,1906.3,1.04923]
[1741960350567,0.00785916,1906.4,1906.3,2.39173]
[1741960351063,1.05703916,1906.4,1906.3,1.3425]
[1741960351264,0.00785916,1906.4,1906.3,2.39173]
[1741960353164,6.0008,1907.4,1906.3,9.8205]
[1741960353368,1.04884,1907.1,1906.7,2.62254]
[1741960353655,1.04884,1907.1,1906.6,5.83044]
[1741960353656,1.04886,1907.0,1906.9,1.04888]
[1741960353861,1.04871,1907.3,1906.8,1.3355]
[1741960354062,6.0008,1907.4,1907.3,1.04868]
[1741960354257,3.84165,1907.4,1907.2,1.0487]
[1741960354470,1.09953494,1907.3,1907.2,0.00785916]
[1741960354667,1.09953494,1907.3,1907.2,1.34335916]
[1741960354870,1.09953494,1907.3,1907.2,2.39209916]
[1741960355061,1.15039967,1907.3,1907.2,1.34335916]
[1741960355265,0.10171967,1907.3,1907.2,1.34335916]
[1741960355468,0.10171967,1907.3,1907.2,2.39209916]
[1741960355664,2.49559967,1907.3,1907.2,0.00785916]
[1741960356967,2.58151773,1907.3,1907.2,0.00785916]
[1741960357271,4.15468773,1907.3,1906.7,8.60051]
[1741960357568,1.44691967,1907.3,1907.2,1.04874]
[1741960357866,0.10171967,1907.3,1907.2,1.04874]
[1741960358371,0.00785916,1907.5,1907.4,1.04863]
[1741960358569,1.04837,1907.9,1907.8,1.04838]
[1741960358775,1.04845,1907.8,1907.7,1.04846]
[1741960359274,1.04852,1907.6,1907.5,2.49082]
[1741960359467,1.04852,1907.6,1907.5,1.4423]
[1741960359868,3.98685,1907.8,1907.5,1.4423]
[1741960359869,0.00785916,1907.7,1907.5,1.4423]
[1741960360074,1.04852,1907.6,1907.5,2.49086]
[1741960360273,2.41432,1907.6,1907.5,1.4423]
[1741960360476,1.3658,1907.6,1907.5,1.04857]
[1741960360674,2.41433,1907.6,1907.5,1.04857]
[1741960360877,1.04857,1907.5,1907.4,1.45015916]
[1741960361078,2.79385916,1907.7,1907.4,1.45015916]
[1741960361377,1.04853,1907.6,1907.5,1.04854]
[1741960361579,4.12925916,1907.7,1907.4,1.45015916]
[1741960361874,1.34325916,1907.7,1907.5,1.04857]
[1741960362073,2.39174916,1907.7,1907.6,2.40612]
[1741960362289,2.39171916,1907.7,1907.6,1.3576]
[1741960363071,1.04857,1907.5,1907.4,3.21565916]
[1741960363378,1.04857,1907.5,1907.4,4.57325916]
[1741960363866,1.04857,1907.5,1907.4,5.62183916]
[1741960364068,1.04857,1907.5,1907.4,0.00785916]
[1741960364265,3.81557,1907.5,1907.4,0.00785916]
[1741960364471,1.04902,1906.7,1906.6,1.04903]
[1741960364774,5.82996,1907.0,1906.5,3.2078]
[1741960364977,0.08593948,1906.9,1906.3,0.7158]
[1741960365170,2.62258,1906.7,1906.3,0.7158]
[1741960365370,1.04918,1906.4,1906.3,1.76501]
[1741960365571,1.04913,1906.5,1906.4,1.04913]
[1741960365775,1.05698916,1906.5,1906.4,1.04913]
[1741960365971,1.04918,1906.4,1906.3,5.3282]
[1741960366173,0.00785916,1906.5,1906.4,2.45378]
[1741960366568,1.05697916,1906.5,1906.4,1.4046]
[1741960366774,0.00785916,1906.5,1906.4,1.4046]
[1741960367075,0.00785916,1906.5,1906.4,2.45378]
[1741960367275,1.0489,1906.9,1906.5,2.62279]
[1741960367472,1.04901,1906.7,1906.6,2.41762]
[1741960367872,4.06543,1907.0,1906.6,1.3686]
[1741960368072,4.06543,1907.0,1906.5,3.2078]
[1741960368073,1.049,1906.8,1906.7,2.4176]
[1741960368274,1.049,1906.8,1906.7,1.3686]
[1741960368876,0.00785916,1906.9,1906.7,1.3686]
[1741960369080,1.04896,1906.8,1906.7,1.3686]
[1741960369279,2.49226,1906.8,1906.7,1.3686]
[1741960369581,1.4433,1906.8,1906.7,2.41761]
[1741960369977,1.05679916,1906.9,1906.8,1.04896]
[1741960370178,1.05675916,1906.9,1906.8,1.04896]
[1741960370373,1.04896,1906.8,1906.7,1.3686]
[1741960370780,2.48956,1906.8,1906.7,2.41761]
[1741960370985,0.00785916,1906.9,1906.8,1.04896]
[1741960371384,0.00785916,1906.9,1906.8,4.25676]
[1741960371580,1.04896,1906.8,1906.7,2.41756]
[1741960371878,0.00785916,1906.9,1906.8,1.04896]
[1741960372185,1.05675916,1906.9,1906.8,1.04896]
[1741960372383,0.00785916,1906.9,1906.8,1.04896]
[1741960373690,1.05679916,1906.9,1906.8,1.04896]
[1741960373982,0.00785916,1906.9,1906.7,2.0587]
[1741960374181,0.00785916,1906.9,1906.8,1.04896]
[1741960374384,1.04857,1907.6,1907.5,1.04852]
[1741960374781,2.28861942,1907.8,1907.3,2.62171]
[1741960374981,1.3796,1907.8,1907.3,2.62171]
[1741960375175,1.04849,1907.7,1907.6,1.04848]
[1741960375383,2.42805,1907.8,1907.7,1.04846]
[1741960375579,1.04857,1907.6,1907.5,1.04856]
[1741960375888,1.04859,1907.5,1907.4,0.00785916]
[1741960377488,1.13449499,1907.5,1907.4,0.00785916]
[1741960377682,1.04859,1907.5,1907.4,0.00785916]
[1741960377896,1.13449365,1907.5,1907.4,0.00785916]
[1741960378280,1.04874,1907.2,1907.1,1.4545]
[1741960378682,1.04885,1907.0,1906.9,3.2078]
[1741960379082,1.04885,1907.0,1906.9,4.2567]
[1741960379284,1.04885,1907.0,1906.9,5.6803]
[1741960379485,1.04885,1907.0,1906.9,2.4725]
[1741960379686,1.04885,1907.0,1906.9,1.4236]
[1741960379988,1.0489,1906.9,1906.8,0.00785916]
[1741960380182,5.31652916,1906.9,1906.8,0.00785916]
[1741960380377,8.4384,1906.9,1906.8,0.00785916]
[1741960380585,1.04918,1906.4,1906.3,2.47279]
[1741960380790,1.04918,1906.4,1906.3,1.4236]
[1741960381083,1.4317,1906.6,1906.3,1.4236]
[1741960381591,1.04918,1906.4,1906.3,2.47281]
[1741960381887,1.04914,1906.5,1906.4,1.04914]
[1741960382084,1.43955916,1906.6,1906.3,1.4236]
[1741960382788,1.04918,1906.4,1906.3,2.47281]
[1741960383092,0.00785916,1906.6,1906.5,1.04912]
[1741960383484,1.05692916,1906.6,1906.5,1.04912]
[1741960383684,0.00785916,1906.6,1906.5,4.25692]
[1741960384784,5.956,1906.9,1906.8,1.04896]
[1741960384982,1.04884,1907.1,1907.0,1.04885]
[1741960385178,0.91027295,1907.2,1906.9,1.426]
[1741960385389,1.04881,1907.1,1907.0,1.0488]
[1741960385577,1.3184,1907.2,1906.9,1.426]
[1741960385578,1.3184,1907.2,1907.1,1.04879]
[1741960385784,3.7867,1907.3,1907.2,1.04874]
[1741960385985,3.79455916,1907.3,1907.2,1.04874]
[1741960386191,2.74585916,1907.3,1907.2,1.04874]